fUST/lending_fUST_20250429
["ID","MTS","AMOUNT","RATE_DAILY","PERIOD"]
[359325599,1745923839955,-1513.37,0.00035616,3]
[359325600,1745923839965,-515.79047758,0.00035616,3]
[359325601,1745923839974,-670.35,0.00035616,3]
[359325602,1745923839984,-500.0,0.00035616,3]
[359325603,1745923839995,-508.27884488,0.00035616,3]
[359325604,1745923840006,-631.99,0.00035616,3]
[359325605,1745923840015,-500.0,0.00035616,3]
[359325606,1745923840024,-400.0,0.00035616,3]
[359325607,1745923840034,-406.5113466,0.00035616,3]
[359325608,1745923840044,-500.0,0.00035616,3]
[359325609,1745923840055,-500.0,0.00035616,3]
[359325610,1745923840066,-400.0,0.00035616,3]
[359325611,1745923840076,-500.0,0.00035616,3]
[359325613,1745923840085,-400.0,0.00035616,3]
[359325615,1745923840094,-500.0,0.00035616,3]
[359325618,1745923840106,-566.18,0.00035616,3]
[359325620,1745923840116,-225.15986514,0.00035616,3]
[359325622,1745923840125,-400.0,0.00035616,3]
[359325624,1745923840134,-542.96,0.00035616,3]
[359325626,1745923840143,-500.0,0.00035616,3]
[359325628,1745923840153,-351.71621545,0.00035616,3]
[359325630,1745923840162,-502.45942682,0.00035616,3]
[359325632,1745923840171,-500.0,0.00035616,3]
[359325634,1745923840180,-500.0,0.00035616,3]
[359325636,1745923840190,-1512.23,0.00035616,3]
[359325638,1745923840200,-500.0,0.00035616,3]
[359325640,1745923840209,-500.0,0.00035616,3]
[359325642,1745923840218,-500.0,0.00035616,3]
[359325644,1745923840229,-500.0,0.00035616,3]
[359325646,1745923840239,-500.0,0.00035616,3]
[359325648,1745923840248,-400.0,0.00035616,3]
[359325650,1745923840257,-400.0,0.00035616,3]
[359325652,1745923840266,-505.39358717,0.00035616,3]
[359325654,1745923840275,-400.0,0.00035616,3]
[359325656,1745923840284,-500.0,0.00035616,3]
[359325658,1745923840294,-500.0,0.00035616,3]
[359325659,1745923840303,-500.0,0.00035616,3]
[359325660,1745923840312,-500.0,0.00035616,3]
[359325662,1745923840321,-500.0,0.00035616,3]
[359325663,1745923840330,-386.71717667,0.00035616,3]
[359325664,1745923840339,-500.0,0.00035616,3]
[359325665,1745923840348,-507.68043697,0.00035616,3]
[359325666,1745923840358,-971.43,0.00035616,3]
[359325668,1745923840367,-400.0,0.00035616,3]
[359325670,1745923840376,-500.0,0.00035616,3]
[359325671,1745923840386,-400.0,0.00035616,3]
[359325672,1745923840395,-500.0,0.00035616,3]
[359325673,1745923840405,-400.0,0.00035616,3]
[359325674,1745923840414,-500.0,0.00035616,3]
[359325675,1745923840423,-505.1083004,0.00035616,3]
[359325676,1745923840432,-400.0,0.00035616,3]
[359325678,1745923840441,-500.0,0.00035616,3]
[359325680,1745923840451,-500.0,0.00035616,3]
[359325682,1745923840459,-500.0,0.00035616,3]
[359325684,1745923840469,-400.0,0.00035616,3]
[359325686,1745923840478,-504.05101428,0.00035616,3]
[359325688,1745923840487,-500.0,0.00035616,3]
[359325689,1745923840499,-1800.93,0.00035616,3]
[359325690,1745923840508,-501.66015232,0.00035616,3]
[359325691,1745923840517,-501.33525781,0.00035616,3]
[359325692,1745923840527,-400.0,0.00035616,3]
[359325693,1745923840536,-400.0,0.00035616,3]
[359325694,1745923840546,-500.0,0.00035616,3]
[359325695,1745923840555,-502.94011578,0.00035616,3]
[359325696,1745923840564,-400.0,0.00035616,3]
[359325697,1745923840574,-503.67147837,0.00035616,3]
[359325698,1745923840584,-510.14,0.00035616,3]
[359325699,1745923840593,-400.0,0.00035616,3]
[359325700,1745923840602,-500.58316273,0.00035616,3]
[359325701,1745923840611,-950.63,0.00035616,3]
[359325702,1745923840621,-510.22214752,0.00035616,3]
[359325703,1745923840630,-658.68,0.00035616,3]
[359325704,1745923840639,-1910.41,0.00035616,3]
[359325705,1745923840648,-337.4865736,0.00035616,3]
[359325706,1745923840658,-500.0,0.00035616,3]
[359325707,1745923840667,-500.0,0.00035616,3]
[359325708,1745923840676,-500.0,0.00035616,3]
[359325709,1745923840685,-400.0,0.00035616,3]
[359325710,1745923840695,-400.0,0.00035616,3]
[359325711,1745923840705,-751.42,0.00035616,3]
[359325714,1745923840714,-1478.5,0.00035616,3]
[359325715,1745923840723,-400.0,0.00035616,3]
[359325716,1745923840733,-809.02,0.00035616,3]
[359325717,1745923840743,-506.83957224,0.00035616,3]
[359325718,1745923840753,-503.15760622,0.00035616,3]
[359325719,1745923840763,-775.94,0.00035616,3]
[359325720,1745923840772,-833.39,0.00035616,3]
[359325721,1745923840781,-400.0,0.00035616,3]
[359325722,1745923840790,-400.0,0.00035616,3]
[359325723,1745923840800,-499.7,0.00035616,3]
[359325724,1745923840810,-400.0,0.00035616,3]
[359325725,1745923840820,-500.0,0.00035616,3]
[359325726,1745923840829,-400.0,0.00035616,3]
[359325727,1745923840840,-500.0,0.00035616,3]
[359325728,1745923840849,-400.0,0.00035616,3]
[359325729,1745923840859,-451.38,0.00035616,3]
[359325730,1745923840868,-563.6,0.00035616,3]
[359325731,1745923840878,-514.54938576,0.00035616,3]
[359325732,1745923840887,-400.0,0.00035616,3]
[359325733,1745923840896,-500.0,0.00035616,3]
[359325734,1745923840906,-506.89003109,0.00035616,3]
[359325735,1745923840915,-400.0,0.00035616,3]
[359325736,1745923840924,-400.0,0.00035616,3]
[359325737,1745923840934,-6095.79,0.00035616,3]
[359325738,1745923840943,-400.0,0.00035616,3]
[359325739,1745923840954,-400.0,0.00035616,3]
[359325740,1745923840964,-400.0,0.00035616,3]
[359325741,1745923840974,-1241.75,0.00035616,3]
[359325742,1745923840983,-400.0,0.00035616,3]
[359325743,1745923840992,-500.0,0.00035616,3]
[359325744,1745923841011,-505.48800886,0.00035616,3]
[359325745,1745923841021,-400.0,0.00035616,3]
[359325746,1745923841031,-405.1960295,0.00035616,3]
[359325747,1745923841043,-500.0,0.00035616,3]
[359325748,1745923841053,-505.84164614,0.00035616,3]
[359325749,1745923841064,-500.0,0.00035616,3]
[359325750,1745923841073,-500.0,0.00035616,3]
[359325751,1745923841082,-2253.64,0.00035616,3]
[359325752,1745923841092,-520.37495997,0.00035616,3]
[359325753,1745923841102,-508.00327083,0.00035616,3]
[359325754,1745923841111,-400.0,0.00035616,3]
[359325755,1745923841121,-500.0,0.00035616,3]
[359325756,1745923841130,-500.0,0.00035616,3]
[359325757,1745923841141,-517.07717667,0.00035616,3]
[359325758,1745923841150,-833.95,0.00035616,3]
[359325759,1745923841160,-500.0,0.00035616,3]
[359325760,1745923841172,-506.5338466,0.00035616,3]
[359325761,1745923841183,-1857.4,0.00035616,3]
[359325762,1745923841192,-400.0,0.00035616,3]
[359325763,1745923841202,-503.18471483,0.00035616,3]
[359325764,1745923841212,-615.03,0.00035616,3]
[359325765,1745923841222,-500.0,0.00035616,3]
[359325766,1745923841231,-500.52044191,0.00035616,3]
[359325767,1745923841241,-500.0,0.00035616,3]
[359325768,1745923841250,-500.0,0.00035616,3]
[359325769,1745923841259,-2815.63,0.00035616,3]
[359325770,1745923841269,-512.39309606,0.00035616,3]
[359325771,1745923841279,-661.7,0.00035616,3]
[359325772,1745923841289,-400.0,0.00035616,3]
[359325773,1745923841299,-400.0,0.00035616,3]
[359325774,1745923841310,-400.0,0.00035616,3]
[359325775,1745923841321,-2722.09,0.00035616,3]
[359325776,1745923841331,-500.0,0.00035616,3]
[359325777,1745923841341,-4487.76,0.00035616,3]
[359325778,1745923841351,-537.09844462,0.00035616,3]
[359325779,1745923841360,-500.0,0.00035616,3]
[359325780,1745923841370,-2250.98,0.00035616,3]
[359325781,1745923841379,-360.25379225,0.00035616,3]
[359325782,1745923841388,-517.0842597,0.00035616,3]
[359325783,1745923841398,-500.25,0.00035616,3]
[359325784,1745923841408,-504.87173461,0.00035616,3]
[359325785,1745923841642,-500.0,0.00035616,3]
[359325786,1745923841651,-400.0,0.00035616,3]
[359325787,1745923841663,-507.15437626,0.00035616,3]
[359325788,1745923841673,-500.0,0.00035616,3]
[359325789,1745923841682,-610.63,0.00035616,3]
[359325790,1745923841691,-1773.53,0.00035616,3]
[359325791,1745923841700,-500.0,0.00035616,3]
[359325792,1745923841709,-400.0,0.00035616,3]
[359325793,1745923841718,-3119.47,0.00035616,3]
[359325794,1745923841729,-727.15,0.00035616,3]
[359325795,1745923841739,-514.38938862,0.00035616,3]
[359325796,1745923841748,-400.0,0.00035616,3]
[359325797,1745923841757,-4058.87,0.00035616,3]
[359325798,1745923841766,-2728.6,0.00035616,3]
[359325799,1745923841776,-504.6371495,0.00035616,3]
[359325800,1745923841785,-1165.25,0.00035616,3]
[359325801,1745923841794,-690.19,0.00035616,3]
[359325802,1745923841803,-400.0,0.00035616,3]
[359325803,1745923841812,-160.0,0.00035616,3]
[359325804,1745923841821,-830.49,0.00035616,3]
[359325805,1745923841831,-400.0,0.00035616,3]
[359325806,1745923841840,-400.0,0.00035616,3]
[359325807,1745923841849,-400.0,0.00035616,3]
[359325808,1745923841858,-501.12751759,0.00035616,3]
[359325809,1745923841868,-400.0,0.00035616,3]
[359325810,1745923841877,-500.0,0.00035616,3]
[359325811,1745923841886,-500.0,0.00035616,3]
[359325812,1745923841896,-1182.48,0.00035616,3]
[359325813,1745923841905,-500.0,0.00035616,3]
[359325814,1745923841914,-512.38,0.00035616,3]
[359325815,1745923841923,-500.0,0.00035616,3]
[359325816,1745923841933,-1401.57561948,0.00035616,3]
[359325817,1745923841956,-651.30970536,0.00035616,3]
[359325818,1745923841982,-110.02467516,0.00035616,3]
[359325819,1745923841991,-412.13,0.00035616,3]
[359325820,1745923842001,-500.0,0.00035616,3]
[359325821,1745923842011,-400.0,0.00035616,3]
[359325822,1745923842020,-500.0,0.00035616,3]
[359325823,1745923842030,-2363.73128367,0.00035616,3]
[359325847,1745923843832,-370000.0,0.00035414,2]
[359325848,1745923843842,-1812.64871633,0.00035616,3]
[359325849,1745923843851,-400.0,0.00035616,3]
[359325850,1745923843861,-702.44,0.00035616,3]
[359325851,1745923843870,-500.0,0.00035616,3]
[359325852,1745923843880,-400.0,0.00035616,3]
[359325853,1745923843889,-1883.72,0.00035616,3]
[359325854,1745923843898,-506.51443106,0.00035616,3]
[359325855,1745923843907,-706.64,0.00035616,3]
[359325856,1745923843916,-555.46,0.00035616,3]
[359325857,1745923843926,-745.63,0.00035616,3]
[359325858,1745923843935,-504.09769016,0.00035616,3]
[359325859,1745923843944,-500.0,0.00035616,3]
[359325860,1745923843954,-489.58,0.00035616,3]
[359325861,1745923843963,-2568.4,0.00035616,3]
[359325862,1745923843973,-1274.46,0.00035616,3]
[359325863,1745923843982,-505.76990631,0.00035616,3]
[359325864,1745923843992,-2895.55,0.00035616,3]
[359325865,1745923844001,-400.0,0.00035616,3]
[359325866,1745923844011,-503.6516069,0.00035616,3]
[359325867,1745923844020,-2650.05,0.00035616,2]
[359325868,1745923844029,-400.0,0.00035616,3]
[359325869,1745923844038,-400.0,0.00035616,3]
[359325870,1745923844047,-504.48380455,0.00035616,3]
[359325871,1745923844056,-400.0,0.00035616,3]
[359325872,1745923844065,-500.0,0.00035616,3]
[359325873,1745923844074,-400.0,0.00035616,3]
[359325874,1745923844084,-400.0,0.00035616,3]
[359325875,1745923844094,-400.0,0.00035616,3]
[359325876,1745923844103,-400.0,0.00035616,3]
[359325877,1745923844113,-500.0,0.00035616,3]
[359325878,1745923844122,-1627.26,0.00035616,3]
[359325879,1745923844131,-400.0,0.00035616,3]
[359325880,1745923844140,-400.0,0.00035616,3]
[359325881,1745923844149,-500.0,0.00035616,3]
[359325882,1745923844159,-1111.05,0.00035616,3]
[359325883,1745923844170,-724.33,0.00035616,3]
[359325884,1745923844181,-400.0,0.00035616,3]
[359325885,1745923844190,-400.0,0.00035616,3]
[359325886,1745923844200,-1318.55,0.00035616,3]
[359325887,1745923844209,-500.0,0.00035616,3]
[359325888,1745923844219,-500.0,0.00035616,3]
[359325889,1745923844228,-423.98,0.00035616,3]
[359325890,1745923844236,-1521.16,0.00035616,3]
[359325891,1745923844246,-868.03,0.00035616,3]
[359325892,1745923844255,-9490.21,0.00035616,3]
[359325893,1745923844264,-400.0,0.00035616,3]
[359325894,1745923844273,-400.0,0.00035616,3]
[359325895,1745923844283,-500.0,0.00035616,3]
[359325896,1745923844292,-500.0,0.00035616,3]
[359325897,1745923844301,-280.18951984,0.00035616,3]
[359325898,1745923844311,-933.54,0.00035616,3]
[359325899,1745923844320,-2156.09,0.00035616,3]
[359325900,1745923844330,-503.67759382,0.00035616,3]
[359325901,1745923844339,-400.0,0.00035616,3]
[359325902,1745923844348,-400.0,0.00035616,3]
[359325903,1745923844357,-2751.25,0.00035616,3]
[359325904,1745923844366,-400.0,0.00035616,3]
[359325905,1745923844375,-400.0,0.00035616,3]
[359325906,1745923844386,-735.58,0.00035616,3]
[359325907,1745923844396,-400.0,0.00035616,3]
[359325908,1745923844407,-400.0,0.00035616,3]
[359325909,1745923844418,-400.0,0.00035616,3]
[359325910,1745923844428,-400.0,0.00035616,3]
[359325911,1745923844437,-521.33641322,0.00035616,3]
[359325912,1745923844448,-2348.84,0.00035616,3]
[359325913,1745923844459,-500.0,0.00035616,3]
[359325914,1745923844468,-400.0,0.00035616,3]
[359325915,1745923844478,-487.69,0.00035616,3]
[359325916,1745923844487,-2149.32,0.00035616,3]
[359325917,1745923844502,-2293.0,0.00035616,3]
[359325918,1745923844511,-1944.79,0.00035616,3]
[359325919,1745923844521,-500.0,0.00035616,3]
[359325920,1745923844530,-2686.34,0.00035616,3]
[359325921,1745923844541,-782.95,0.00035616,3]
[359325922,1745923844551,-3490.72,0.00035616,3]
[359325923,1745923844561,-1402.93,0.00035616,3]
[359325924,1745923844573,-6603.44,0.00035616,3]
[359325925,1745923844582,-2919.25,0.00035616,3]
[359325926,1745923844592,-500.0,0.00035616,3]
[359325927,1745923844602,-973.67,0.00035616,3]
[359325928,1745923844615,-529.7,0.00035616,3]
[359325929,1745923844624,-500.0,0.00035616,3]
[359325930,1745923844634,-666.2,0.00035616,3]
[359325931,1745923844645,-509.96645811,0.00035616,3]
[359325932,1745923844655,-817.2,0.00035616,3]
[359325933,1745923844666,-500.0,0.00035616,3]
[359325934,1745923844676,-3103.87,0.00035616,3]
[359325935,1745923844685,-479.46,0.00035616,3]
[359325936,1745923844694,-400.0,0.00035616,3]
[359325937,1745923844705,-500.0,0.00035616,3]
[359325938,1745923844714,-4948.83,0.00035616,3]
[359325939,1745923844723,-500.0,0.00035616,3]
[359325940,1745923844732,-400.0,0.00035616,3]
[359325941,1745923844742,-5904.56,0.00035616,3]
[359325942,1745923844751,-2625.83,0.00035616,3]
[359325943,1745923844761,-500.0,0.00035616,3]
[359325944,1745923844772,-500.0,0.00035616,3]
[359325945,1745923844782,-400.0,0.00035616,3]
[359325946,1745923844791,-1047.24,0.00035616,3]
[359325947,1745923844800,-892.73,0.00035616,3]
[359325948,1745923844809,-896.5,0.00035616,3]
[359325949,1745923844819,-713.97,0.00035616,3]
[359325950,1745923844828,-938.87,0.00035616,3]
[359325951,1745923844837,-587.94,0.00035616,3]
[359325952,1745923844847,-2282.4,0.00035616,3]
[359325953,1745923844856,-796.57,0.00035616,3]
[359325954,1745923844865,-400.0,0.00035616,3]
[359325955,1745923844875,-500.0,0.00035616,3]
[359325956,1745923844884,-2489.38,0.00035616,3]
[359325957,1745923844893,-924.12,0.00035616,3]
[359325958,1745923844902,-400.0,0.00035616,3]
[359325959,1745923844911,-213.77554337,0.00035616,3]
[359325960,1745923844920,-1285.92,0.00035616,3]
[359325961,1745923844930,-268.44509685,0.00035616,3]
[359325995,1745924640689,-161.30147,0.00027397,2]
[359325996,1745924640711,-141.92704006,0.00034416,2]
[359325997,1745924708360,-178.0,0.00018585,2]
[359326005,1745925032294,-940.33,0.00024857,2]
[359326006,1745925032306,-2914.26074174,0.00024857,2]
[359326007,1745925032316,-200.0,0.00024864,2]
[359326008,1745925032325,-3854.59074174,0.00024872,2]
[359326009,1745925032335,-200.0,0.00024873,2]
[359326010,1745925032344,-279.0,0.00024889,2]
[359326011,1745925032354,-3854.59074174,0.0002489,2]
[359326012,1745925032363,-3854.59074174,0.00024895,2]
[359326014,1745925032373,-155.0,0.00030137,2]
[359326015,1745925032382,-187.290118,0.00030732,2]
[359326016,1745925032392,-207.4,0.00032294,2]
[359326017,1745925032402,-155.0,0.00032876,2]
[359326018,1745925032411,-230.7053306,0.00033663,2]
[359326019,1745925032421,-202.87148472,0.000339,11]
[359326020,1745925032430,-400.0,0.00033998,3]
[359326021,1745925032440,-302.0,0.00033998,3]
[359326022,1745925032450,-400.0,0.00033998,2]
[359326023,1745925032460,-400.0,0.00033998,3]
[359326024,1745925032469,-869.0,0.00033998,3]
[359326025,1745925032479,-24269.97506863,0.00033999,2]
[359326026,1745925032490,-939.52,0.00033999,2]
[359326028,1745925032507,-1109.14178699,0.00033999,2]
[359326029,1745925032522,-679.3711583,0.00033999,2]
[359326030,1745925032534,-23001.99198608,0.00033999,2]
[359326031,1745925032542,-7838.96987172,0.00034,30]
[359326032,1745925032551,-500.0,0.00034,5]
[359326033,1745925032559,-500.0,0.00034,5]
[359326034,1745925032568,-500.0,0.00034,5]
[359326035,1745925032576,-300.0,0.00034,5]
[359326036,1745925032585,-500.0,0.00034,5]
[359326037,1745925032594,-202.8714845,0.00034161,11]
[359326038,1745925032602,-1000.0,0.00034316,2]
[359326039,1745925032611,-647.55214227,0.000344,5]
[359326040,1745925032619,-505.9426864,0.000344,5]
[359326041,1745925032628,-500.0,0.000344,5]
[359326042,1745925032637,-500.0,0.000344,5]
[359326043,1745925032646,-500.0,0.000344,5]
[359326044,1745925032654,-71.2229663,0.00034416,2]
[359326045,1745925032662,-202.8714845,0.00034422,11]
[359326046,1745925032671,-242.04608275,0.00034516,120]
[359326047,1745925032679,-190.7267388,0.00034616,4]
[359326048,1745925032688,-202.8714845,0.00034683,12]
[359326049,1745925032696,-202.8714845,0.00034943,12]
[359326050,1745925032706,-180.0,0.00035,120]
[359326051,1745925032714,-202.8714845,0.00035204,12]
[359326052,1745925032726,-203.8885764,0.00035431,2]
[359326053,1745925032735,-203.88857639,0.00035452,2]
[359326054,1745925032744,-160.0,0.0003546,2]
[359326055,1745925032754,-160.0,0.00035461,2]
[359326056,1745925032763,-420.99849377,0.00035461,2]
[359326057,1745925032773,-202.8714845,0.00035465,12]
[359326058,1745925032781,-203.88857639,0.00035474,2]
[359326059,1745925032790,-160.0,0.00035491,2]
[359326060,1745925032798,-840.73483787,0.00035492,2]
[359326061,1745925032806,-12589.54207618,0.00035494,2]
[359326062,1745925032814,-203.88857639,0.00035495,2]
[359326063,1745925032823,-25094.4536622,0.00035505,3]
[359326064,1745925032831,-500.0,0.00035505,7]
[359326065,1745925032840,-500.0,0.00035505,7]
[359326066,1745925032848,-500.0,0.00035505,7]
[359326067,1745925032857,-500.0,0.00035505,2]
[359326068,1745925032866,-500.0,0.00035505,7]
[359326069,1745925032878,-500.0,0.00035505,7]
[359326070,1745925032887,-500.0,0.00035505,2]
[359326071,1745925032896,-425.24002456,0.00035505,7]
[359326072,1745925032905,-500.0,0.00035505,7]
[359326073,1745925032914,-333.84386866,0.00035505,7]
[359326074,1745925032923,-201.2391272,0.00035505,7]
[359326075,1745925032932,-500.0,0.00035505,7]
[359326076,1745925032941,-500.0,0.00035505,2]
[359326077,1745925032953,-500.0,0.00035505,7]
[359326078,1745925032962,-500.0,0.00035505,2]
[359326079,1745925032971,-275.26127158,0.00035505,7]
[359326080,1745925032980,-500.0,0.00035505,2]
[359326081,1745925032989,-500.0,0.00035505,7]
[359326082,1745925032999,-500.0,0.00035505,2]
[359326083,1745925033009,-422.2966867,0.00035505,7]
[359326084,1745925033019,-500.0,0.00035505,2]
[359326085,1745925033028,-500.0,0.00035505,2]
[359326086,1745925033038,-500.0,0.00035505,2]
[359326087,1745925033047,-465.66137353,0.00035505,2]
[359326088,1745925033056,-500.0,0.00035505,2]
[359326089,1745925033065,-500.0,0.00035505,2]
[359326090,1745925033075,-500.0,0.00035505,2]
[359326091,1745925033084,-500.0,0.00035505,2]
[359326092,1745925033094,-500.0,0.00035505,2]
[359326093,1745925033104,-500.0,0.00035505,2]
[359326094,1745925033113,-40454.80685192,0.00035506,3]
[359326104,1745925038531,-135206.36878308,0.00035506,3]
[359326105,1745925038541,-260.40749592,0.00035515,7]
[359326106,1745925038550,-170.17633415,0.00035515,7]
[359326107,1745925038559,-500.0,0.00035515,7]
[359326108,1745925038569,-577.50607025,0.00035515,7]
[359326109,1745925038579,-500.0,0.00035515,7]
[359326110,1745925038588,-318.70595056,0.00035515,7]
[359326111,1745925038598,-500.0,0.00035515,7]
[359326112,1745925038607,-500.0,0.00035515,7]
[359326113,1745925038617,-500.0,0.00035515,7]
[359326114,1745925038626,-500.0,0.00035515,7]
[359326115,1745925038636,-500.0,0.00035515,7]
[359326116,1745925038646,-425.85677638,0.00035515,7]
[359326117,1745925038656,-500.0,0.00035515,7]
[359326119,1745925038666,-500.0,0.00035515,7]
[359326120,1745925038676,-500.0,0.00035515,7]
[359326121,1745925038685,-500.0,0.00035515,7]
[359326122,1745925038695,-500.0,0.00035515,7]
[359326123,1745925038704,-500.0,0.00035515,7]
[359326124,1745925038714,-600.0,0.00035515,7]
[359326125,1745925038723,-370000.0,0.00035516,2]
[359326126,1745925038733,-203.88857639,0.00035516,2]
[359326127,1745925038742,-25094.4536622,0.00035521,3]
[359326128,1745925038752,-4624.983028,0.00035531,2]
[359326129,1745925038761,-506.76132985,0.00035573,5]
[359326130,1745925038770,-501.60476938,0.00035573,5]
[359326131,1745925038780,-500.0,0.00035573,5]
[359326132,1745925038789,-500.0,0.00035573,5]
[359326133,1745925038799,-572.37,0.000356,2]
[359326134,1745925038808,-12851.20751934,0.000356,4]
[359326135,1745925038818,-6878.48365092,0.000356,4]
[359326136,1745925038827,-25094.4536622,0.00035606,3]
[359326137,1745925038837,-155.0,0.00035615,2]
[359326138,1745925038846,-500.0,0.00035616,3]
[359326139,1745925038856,-421.28334683,0.00035616,3]
[359326140,1745925038865,-506.25748633,0.00035616,3]
[359326141,1745925038877,-400.0,0.00035616,3]
[359326142,1745925038891,-500.0,0.00035616,3]
[359326143,1745925038903,-500.0,0.00035616,3]
[359326144,1745925038913,-400.0,0.00035616,3]
[359326145,1745925038923,-258.91961652,0.00035616,3]
[359326146,1745925038932,-400.0,0.00035616,3]
[359326147,1745925038941,-500.0,0.00035616,3]
[359326148,1745925038950,-500.0,0.00035616,3]
[359326149,1745925038959,-504.11128897,0.00035616,3]
[359326150,1745925038969,-500.0,0.00035616,3]
[359326151,1745925038979,-400.0,0.00035616,3]
[359326152,1745925038988,-504.72553952,0.00035616,3]
[359326153,1745925038997,-743.32,0.00035616,3]
[359326154,1745925039008,-400.0,0.00035616,3]
[359326155,1745925039017,-500.0,0.00035616,3]
[359326156,1745925039027,-500.0,0.00035616,3]
[359326157,1745925039036,-400.0,0.00035616,3]
[359326158,1745925039045,-500.0,0.00035616,3]
[359326159,1745925039054,-400.0,0.00035616,3]
[359326160,1745925039063,-352.25224237,0.00035616,3]
[359326161,1745925039073,-506.39786722,0.00035616,3]
[359326162,1745925039082,-400.0,0.00035616,3]
[359326163,1745925039091,-500.0,0.00035616,3]
[359326164,1745925039100,-312.10440083,0.00035616,3]
[359326165,1745925039109,-400.0,0.00035616,3]
[359326166,1745925039119,-500.0,0.00035616,3]
[359326167,1745925039128,-500.0,0.00035616,3]
[359326168,1745925039137,-516.99019514,0.00035616,3]
[359326169,1745925039146,-400.0,0.00035616,3]
[359326170,1745925039155,-500.0,0.00035616,3]
[359326171,1745925039165,-514.44937368,0.00035616,3]
[359326172,1745925039174,-502.0116866,0.00035616,3]
[359326173,1745925039183,-501.97910113,0.00035616,3]
[359326174,1745925039193,-1523.96,0.00035616,3]
[359326175,1745925039202,-500.0,0.00035616,3]
[359326176,1745925039212,-500.0,0.00035616,3]
[359326177,1745925039221,-500.0,0.00035616,3]
[359326178,1745925039230,-400.0,0.00035616,3]
[359326179,1745925039240,-500.0,0.00035616,3]
[359326180,1745925039249,-1353.82,0.00035616,3]
[359326181,1745925039259,-400.0,0.00035616,3]
[359326182,1745925039268,-500.0,0.00035616,3]
[359326183,1745925039278,-400.0,0.00035616,3]
[359326184,1745925039287,-400.0,0.00035616,3]
[359326185,1745925039297,-500.0,0.00035616,3]
[359326186,1745925039306,-1108.27,0.00035616,3]
[359326187,1745925039316,-434.55,0.00035616,3]
[359326188,1745925039325,-500.0,0.00035616,3]
[359326189,1745925039334,-400.0,0.00035616,3]
[359326190,1745925039344,-1000.0,0.00035616,3]
[359326191,1745925039356,-408.27,0.00035616,3]
[359326192,1745925039365,-500.0,0.00035616,3]
[359326193,1745925039375,-400.0,0.00035616,3]
[359326194,1745925039384,-500.0,0.00035616,3]
[359326195,1745925039393,-400.0,0.00035616,3]
[359326196,1745925039402,-500.0,0.00035616,3]
[359326197,1745925039412,-500.0,0.00035616,3]
[359326198,1745925039421,-500.0,0.00035616,3]
[359326199,1745925039430,-500.0,0.00035616,3]
[359326200,1745925039439,-400.0,0.00035616,3]
[359326201,1745925039449,-400.0,0.00035616,3]
[359326202,1745925039458,-500.0,0.00035616,3]
[359326203,1745925039468,-400.0,0.00035616,3]
[359326204,1745925039478,-400.0,0.00035616,3]
[359326205,1745925039487,-400.0,0.00035616,3]
[359326206,1745925039496,-500.0,0.00035616,3]
[359326207,1745925039506,-500.0,0.00035616,3]
[359326208,1745925039515,-282.80997923,0.00035616,3]